bitfinex/quotes_BTCUSD_20251001
["timestamp","ask_amount","ask_price","bid_price","bid_amount"]
[1759283787733,0.02656001,114500.0,114490.0,5.07552746]
[1759283788075,0.02446001,114500.0,114490.0,5.07552746]
[1759283789089,0.02446001,114500.0,114490.0,5.16612293]
[1759283789609,0.02446001,114500.0,114490.0,5.16491293]
[1759283790427,0.02446001,114500.0,114490.0,4.09523293]
[1759283790580,0.02446001,114500.0,114490.0,5.16491293]
[1759283791062,0.02446001,114500.0,114490.0,5.33287483]
[1759283791264,0.02446001,114500.0,114490.0,5.63287483]
[1759283791472,0.02446001,114500.0,114490.0,5.65733484]
[1759283793019,1e-08,114500.0,114490.0,4.84041484]
[1759283793158,0.0004,114510.0,114500.0,0.51467248]
[1759283793374,0.0004,114510.0,114500.0,4.24953995]
[1759283793588,0.0004,114510.0,114500.0,4.27498995]
[1759283794419,0.0004,114510.0,114500.0,4.34146165]
[1759283794758,0.0094,114510.0,114500.0,4.34146165]
[1759283795163,0.0004,114510.0,114500.0,4.34146165]
[1759283796294,0.0004,114510.0,114500.0,4.08858165]
[1759283796514,0.0064,114510.0,114500.0,4.34666165]
[1759283797127,0.0064,114510.0,114500.0,5.23622165]
[1759283797327,0.0064,114510.0,114500.0,5.32698165]
[1759283797759,0.0064,114510.0,114500.0,5.32702165]
[1759283800316,0.0064,114510.0,114500.0,5.32694165]
[1759283800994,0.0064,114510.0,114500.0,4.25698165]
[1759283801197,0.0064,114510.0,114500.0,5.32694165]
[1759283803066,0.0064,114510.0,114500.0,4.25698165]
[1759283803276,0.0064,114510.0,114500.0,5.32694165]
[1759283806124,0.0064,114510.0,114500.0,4.25577165]
[1759283806346,0.0064,114510.0,114500.0,5.32356165]
[1759283806503,0.0064,114510.0,114500.0,5.32549165]
[1759283806715,0.0064,114510.0,114500.0,5.32670165]
[1759283808575,0.0064,114510.0,114500.0,5.32344165]
[1759283808783,0.0064,114510.0,114500.0,4.25384165]
[1759283808993,0.0064,114510.0,114500.0,5.32545165]
[1759283809197,0.0064,114510.0,114500.0,5.32666165]
[1759283810114,0.0064,114510.0,114500.0,4.25698165]
[1759283810320,0.0064,114510.0,114500.0,5.23606165]
[1759283810524,0.0064,114510.0,114500.0,5.32561165]
[1759283810725,0.0064,114510.0,114500.0,5.32682165]
[1759283811385,0.0064,114510.0,114500.0,5.353025]
[1759283812517,0.0064,114510.0,114500.0,5.351815]
[1759283812758,0.0064,114510.0,114500.0,5.353025]
[1759283813870,0.00856,114510.0,114500.0,4.280045]
[1759283814076,0.01149,114510.0,114500.0,5.4123453]
[1759283814280,0.01149,114510.0,114500.0,5.349765]
[1759283814476,0.0064,114510.0,114500.0,5.351695]
[1759283815137,0.0064,114510.0,114500.0,5.4142737]
[1759283815344,0.0064,114510.0,114500.0,5.352905]
[1759283815961,0.0064,114510.0,114500.0,5.100105]
[1759283816141,0.01149,114510.0,114500.0,4.22703399]
[1759283816367,0.00856,114510.0,114500.0,5.29852399]
[1759283816615,0.0064,114510.0,114500.0,5.29852399]
[1759283817072,0.0064,114510.0,114500.0,4.84460399]
[1759283817290,0.0064,114510.0,114500.0,5.29844399]
[1759283817512,0.0064,114510.0,114500.0,5.29965399]
[1759283818488,0.0064,114510.0,114500.0,5.29844399]
[1759283818694,0.0064,114510.0,114500.0,5.29965399]
[1759283821071,0.00856,114510.0,114500.0,4.22703399]
[1759283821276,0.01149,114510.0,114500.0,5.29647399]
[1759283821803,0.0064,114510.0,114500.0,5.23582618]
[1759283822206,0.0064,114510.0,114500.0,5.23703618]
[1759283823152,0.0064,114510.0,114500.0,5.23582618]
[1759283823753,0.0064,114510.0,114500.0,5.23703618]
[1759283824985,0.0064,114510.0,114500.0,5.32642165]
[1759283825209,0.0064,114510.0,114500.0,5.35262573]
[1759283826883,0.0064,114510.0,114500.0,5.33655437]
[1759283829315,0.0064,114510.0,114500.0,5.01262573]
[1759283832762,0.0064,114510.0,114500.0,3.94318573]
[1759283833331,0.0064,114510.0,114500.0,5.01190573]
[1759283833544,0.0064,114510.0,114500.0,3.94318573]
[1759283833735,0.0064,114510.0,114500.0,5.01194573]
[1759283835247,0.0064,114510.0,114500.0,5.35073573]
[1759283835453,0.0064,114510.0,114500.0,5.35194573]
[1759283835735,0.0064,114510.0,114500.0,4.28318573]
[1759283835867,0.0064,114510.0,114500.0,5.35194573]
[1759283836075,0.0064,114510.0,114500.0,5.35073573]
[1759283836501,0.0064,114510.0,114500.0,5.35194573]
[1759283836706,0.0064,114510.0,114500.0,5.41456568]
[1759283836913,0.0064,114510.0,114500.0,5.41440568]
[1759283837167,0.0064,114510.0,114500.0,5.09106773]
[1759283837377,0.0064,114510.0,114500.0,4.02246773]
[1759283837614,0.0064,114510.0,114500.0,5.08985773]
[1759283838448,0.0064,114510.0,114500.0,5.09106773]
[1759283838947,0.0064,114510.0,114500.0,4.02246773]
[1759283839244,0.0064,114510.0,114500.0,5.15267768]
[1759283839245,0.00839,114510.0,114500.0,5.15267768]
[1759283839451,0.01148,114510.0,114500.0,4.08194768]
[1759283839630,0.01148,114510.0,114500.0,5.06196365]
[1759283839981,0.00839,114510.0,114500.0,5.06389365]
[1759283840217,0.00852,114510.0,114500.0,4.97313365]
[1759283840421,0.00852,114510.0,114500.0,5.06389365]
[1759283840823,0.00852,114510.0,114500.0,3.99505365]
[1759283841019,0.0064,114510.0,114500.0,5.06389365]
[1759283841225,0.01159,114510.0,114500.0,3.99312365]
[1759283841441,0.01159,114510.0,114500.0,4.97253818]
[1759283842194,0.00852,114510.0,114500.0,4.97253818]
[1759283842383,0.0064,114510.0,114500.0,4.97446818]
[1759283843005,0.0064,114510.0,114500.0,4.97450818]
[1759283843850,0.00852,114510.0,114500.0,4.97450818]
[1759283844063,0.0064,114510.0,114500.0,4.97450818]
[1759283844270,0.00852,114510.0,114500.0,4.97257818]
[1759283844476,0.01159,114510.0,114500.0,4.97257818]
[1759283844674,0.00852,114510.0,114500.0,4.97450818]
[1759283844898,0.0064,114510.0,114500.0,4.97450818]
[1759283845627,0.0064,114510.0,114500.0,4.97571818]
[1759283845809,0.0064,114510.0,114500.0,4.97450818]
[1759283846196,0.0064,114510.0,114500.0,4.97571818]
[1759283847177,0.0064,114510.0,114500.0,5.03833813]
[1759283848472,0.0064,114510.0,114500.0,5.1277236]
[1759283848701,0.0064,114510.0,114500.0,5.06510365]
[1759283854931,0.0064,114510.0,114500.0,3.99626365]
[1759283855346,0.0064,114510.0,114500.0,5.06474365]
[1759283856408,0.0064,114510.0,114500.0,4.97394365]
[1759283856610,0.0064,114510.0,114500.0,5.06470365]
[1759283857295,0.0064,114510.0,114500.0,5.06349365]
[1759283857775,0.0064,114510.0,114500.0,5.06470365]
[1759283858813,0.0064,114510.0,114500.0,3.99626365]
[1759283859015,0.0064,114510.0,114500.0,5.06466365]
[1759283859582,1e-08,114510.0,114500.0,5.09481555]
[1759283859793,1e-08,114510.0,114500.0,5.12101689]
[1759283860535,1e-08,114510.0,114500.0,5.21292689]
[1759283861709,1e-08,114510.0,114500.0,5.04952689]
[1759283862844,1e-08,114510.0,114500.0,3.98112689]
[1759283863069,1e-08,114510.0,114500.0,4.68624689]
[1759283863501,1e-08,114510.0,114500.0,3.98112689]
[1759283863702,1e-08,114510.0,114500.0,4.23236689]
[1759283863935,1e-08,114510.0,114500.0,3.98112689]
[1759283864160,1e-08,114510.0,114500.0,4.23236689]
[1759283864592,1e-08,114510.0,114500.0,3.98112689]
[1759283864995,1e-08,114510.0,114500.0,4.23236689]
[1759283865511,1e-08,114510.0,114500.0,3.98112689]
[1759283865620,1e-08,114510.0,114500.0,4.23232689]
[1759283866131,1e-08,114510.0,114500.0,3.98112689]
[1759283866340,1e-08,114510.0,114500.0,4.23111689]
[1759283866494,1e-08,114510.0,114500.0,4.23232689]
[1759283866700,1e-08,114510.0,114500.0,4.23228689]
[1759283867112,1e-08,114510.0,114500.0,4.39564689]
[1759283867311,1e-08,114510.0,114500.0,5.11944689]
[1759283867588,0.00212001,114510.0,114500.0,3.85592499]
[1759283867771,0.00519001,114510.0,114500.0,4.83320499]
[1759283867979,0.00519001,114510.0,114500.0,4.92396499]
[1759283868178,0.00212001,114510.0,114500.0,4.47012499]
[1759283868378,1e-08,114510.0,114500.0,4.92589499]
[1759283868891,1e-08,114510.0,114500.0,4.92706499]
[1759283869257,1e-08,114510.0,114500.0,3.85906499]
[1759283869465,0.00212001,114510.0,114500.0,3.85785499]
[1759283869681,1e-08,114510.0,114500.0,4.92581499]
[1759283869904,1e-08,114510.0,114500.0,4.47197499]
[1759283870107,1e-08,114510.0,114500.0,4.92581499]
[1759283870830,1e-08,114510.0,114500.0,4.92702499]
[1759283871029,1e-08,114510.0,114500.0,4.92694499]
[1759283873598,1e-08,114510.0,114500.0,4.92573499]
[1759283873722,1e-08,114510.0,114500.0,4.92694499]
[1759283874817,1e-08,114510.0,114500.0,4.92573499]
[1759283875024,1e-08,114510.0,114500.0,4.92694499]
[1759283875229,1e-08,114510.0,114500.0,4.92573499]
[1759283875425,1e-08,114510.0,114500.0,4.92694499]
[1759283875637,1e-08,114510.0,114500.0,4.92573499]
[1759283876329,1e-08,114510.0,114500.0,4.92694499]
[1759283876865,1e-08,114510.0,114500.0,4.92573499]
[1759283877371,1e-08,114510.0,114500.0,5.09030499]
[1759283878384,1e-08,114510.0,114500.0,5.08909499]
[1759283878743,1e-08,114510.0,114500.0,5.09030499]
[1759283880289,1e-08,114510.0,114500.0,5.08909499]
[1759283881797,1e-08,114510.0,114500.0,5.09030499]
[1759283882330,1e-08,114510.0,114500.0,5.08909499]
[1759283882497,0.00207001,114510.0,114500.0,4.02121499]
[1759283882649,0.00512001,114510.0,114500.0,5.08696499]
[1759283883091,0.00207001,114510.0,114500.0,5.06269365]
[1759283883262,1e-08,114510.0,114500.0,5.06269365]
[1759283886634,1e-08,114510.0,114500.0,5.06390365]
[1759283887983,1e-08,114510.0,114500.0,5.06269365]
[1759283888607,1e-08,114510.0,114500.0,4.92803245]
[1759283888903,0.02389001,114510.0,114500.0,4.9913813]
[1759283889790,0.02389001,114510.0,114500.0,4.9925913]
[1759283889994,0.02389001,114510.0,114500.0,4.9913813]
[1759283890743,0.02389001,114510.0,114500.0,5.0832913]
[1759283890959,0.02389001,114510.0,114500.0,5.0161213]
[1759283892880,0.02389001,114510.0,114500.0,4.5623613]
[1759283893096,0.02389001,114510.0,114500.0,5.0162013]
[1759283893776,0.02389001,114510.0,114500.0,3.9484413]
[1759283893996,0.02389001,114510.0,114500.0,5.0162013]
[1759283894519,0.02389001,114510.0,114500.0,3.9484413]
[1759283894677,0.02389001,114510.0,114500.0,5.0162013]
[1759283895072,0.02389001,114510.0,114500.0,3.9484413]
[1759283895272,0.02389001,114510.0,114500.0,5.0162013]
[1759283895529,0.02901001,114510.0,114500.0,3.85712583]
[1759283895751,0.02901001,114510.0,114500.0,4.92488583]
[1759283896019,0.02389001,114510.0,114500.0,4.92681583]
[1759283898472,0.02389001,114510.0,114500.0,4.86422882]
[1759283904459,0.02389001,114510.0,114500.0,4.86543882]
[1759283904978,0.02389001,114510.0,114500.0,4.89606597]
[1759283907521,0.02389001,114510.0,114500.0,4.89485597]
[1759283908271,0.02389001,114510.0,114500.0,4.89606597]
[1759283908481,0.02389001,114510.0,114500.0,4.89485597]
[1759283909306,0.02907001,114510.0,114500.0,3.82516597]
[1759283909512,0.02907001,114510.0,114500.0,4.83028968]
[1759283910774,0.02907001,114510.0,114500.0,3.76256968]
[1759283910984,0.02907001,114510.0,114500.0,4.83028968]
[1759283911201,0.02907001,114510.0,114500.0,3.76256968]
[1759283911413,0.02907001,114510.0,114500.0,4.57948968]
[1759283911649,0.02907001,114510.0,114500.0,4.83028968]
[1759283914977,0.02907001,114510.0,114500.0,4.89288597]
[1759283915173,0.02907001,114510.0,114500.0,4.64208597]
[1759283915395,0.02907001,114510.0,114500.0,4.89288597]
[1759283916596,0.02907001,114510.0,114500.0,4.61161333]
[1759283918147,0.02907001,114510.0,114500.0,4.52085333]
[1759283918377,0.02907001,114510.0,114500.0,4.61161333]
[1759283918571,0.02907001,114510.0,114500.0,4.95161333]
[1759283920032,0.02597001,114510.0,114500.0,4.95354333]
[1759283925023,0.02389001,114510.0,114500.0,4.95354333]
[1759283926570,0.02389001,114510.0,114500.0,5.01613962]
[1759283929166,0.02389001,114510.0,114500.0,5.01609962]
[1759283931665,0.05009748,114510.0,114500.0,5.01609962]
[1759283933722,0.05214748,114510.0,114500.0,5.01609962]
[1759283934631,0.05009748,114510.0,114500.0,5.01609962]
[1759283935238,0.05214748,114510.0,114500.0,5.01609962]
[1759283942607,0.05009748,114510.0,114500.0,5.01609962]
[1759283949984,0.05214748,114510.0,114500.0,5.01609962]
[1759283952044,0.02389001,114510.0,114500.0,4.95471333]
[1759283953479,0.02389001,114510.0,114500.0,4.95459333]
[1759283953687,0.02389001,114510.0,114500.0,3.88703333]
[1759283953889,0.02389001,114510.0,114500.0,4.95459333]
[1759283954423,0.02389001,114510.0,114500.0,3.88703333]
[1759283954620,0.02389001,114510.0,114500.0,4.95455333]
[1759283958132,0.02389001,114510.0,114500.0,4.98075897]
[1759283959653,0.02389001,114510.0,114500.0,3.91323897]
[1759283959859,0.02389001,114510.0,114500.0,4.98075897]
[1759283961652,0.02389001,114510.0,114500.0,3.91323897]
[1759283962217,0.02389001,114510.0,114500.0,4.98071897]
[1759283962960,0.02389001,114510.0,114500.0,5.07010444]
[1759283965007,0.02389001,114510.0,114500.0,3.83926444]
[1759283965223,0.01889001,114510.0,114500.0,4.18058444]
[1759283966285,0.01889001,114510.0,114500.0,4.08982444]
[1759283967353,0.01889001,114510.0,114500.0,5.07010444]
[1759283972593,0.01889001,114510.0,114500.0,4.08982444]
[1759283974472,0.01889001,114510.0,114500.0,4.08974444]
[1759283975100,0.01889001,114510.0,114500.0,3.83926444]
[1759283975311,0.01889001,114510.0,114500.0,4.06299498]
[1759283976092,0.01889001,114510.0,114500.0,3.81251498]
[1759283976307,0.01889001,114510.0,114500.0,4.06299498]
[1759283977271,0.01889001,114510.0,114500.0,5.04327498]
[1759283977915,0.01889001,114510.0,114500.0,3.97587498]
[1759283978132,0.01889001,114510.0,114500.0,3.81251498]
[1759283978261,0.01889001,114510.0,114500.0,4.15371498]
[1759283978793,0.01889001,114510.0,114500.0,4.2191713]
[1759283980369,0.01889001,114510.0,114500.0,4.1284113]
[1759283981512,0.01889001,114510.0,114500.0,4.1585632]
[1759283982749,0.01889001,114510.0,114500.0,3.9081232]
[1759283982935,0.01889001,114510.0,114500.0,4.1585632]
[1759283985232,0.01889001,114510.0,114500.0,4.17424272]
[1759283986770,0.01889001,114510.0,114500.0,3.92380272]
[1759283986880,0.01889001,114510.0,114500.0,4.17424272]
[1759283987103,0.01889001,114510.0,114500.0,4.33760272]
[1759283987302,0.01889001,114510.0,114500.0,5.15444272]
[1759283987928,0.01889001,114510.0,114500.0,4.99104272]
[1759283988105,0.01889001,114510.0,114500.0,4.62800272]
[1759283988546,0.01889001,114510.0,114500.0,3.92380272]
[1759283988726,0.01889001,114510.0,114500.0,4.17420272]
[1759283989684,0.01889001,114510.0,114500.0,3.92380272]
[1759283989830,0.01889001,114510.0,114500.0,4.17420272]
[1759283993819,0.01889001,114510.0,114500.0,3.92380272]
[1759283994022,0.01889001,114510.0,114500.0,4.17416272]
[1759283994453,0.01889001,114510.0,114500.0,3.92380272]
[1759283994751,0.01889001,114510.0,114500.0,4.17416272]
[1759283997430,0.01889001,114510.0,114500.0,4.08716272]
[1759283997637,0.01889001,114510.0,114500.0,4.89706272]
[1759283997858,0.01889001,114510.0,114500.0,4.98782272]
[1759283997990,0.01889001,114510.0,114500.0,4.98975272]
[1759283998241,0.01889001,114510.0,114500.0,4.99096272]
[1759283998450,0.01889001,114510.0,114500.0,3.92259272]
[1759283998648,0.01889001,114510.0,114500.0,4.62792272]
[1759284000230,0.01889001,114510.0,114500.0,4.26488272]
[1759284000441,0.01889001,114510.0,114500.0,4.17412272]
[1759284000671,0.01889001,114510.0,114500.0,3.88885681]
[1759284002745,0.01889001,114510.0,114500.0,3.88764681]
[1759284002902,0.02389001,114510.0,114500.0,3.88885681]
[1759284003343,0.02389001,114510.0,114500.0,3.63853681]
[1759284003677,0.02389001,114510.0,114500.0,3.64532681]
[1759284003883,0.02585001,114510.0,114500.0,3.61634373]
[1759284004083,0.02389001,114510.0,114500.0,3.61827373]
[1759284004312,0.02389001,114510.0,114500.0,3.61948373]
[1759284004545,0.02389001,114510.0,114500.0,3.36916373]
[1759284004732,0.02896001,114510.0,114500.0,3.36602373]
[1759284004934,0.02585001,114510.0,114500.0,3.36602373]
[1759284005113,0.02896001,114510.0,114500.0,3.58615183]
[1759284005340,0.02896001,114510.0,114500.0,3.43413944]
[1759284005935,0.02896001,114510.0,114500.0,3.77413944]
[1759284006138,0.02896001,114510.0,114500.0,3.55755004]
[1759284006342,0.02896001,114510.0,114500.0,3.73222252]
[1759284006558,0.02896001,114510.0,114500.0,3.48194252]
[1759284006772,0.02896001,114510.0,114500.0,3.73222252]
[1759284006996,0.02896001,114510.0,114500.0,3.48194252]
[1759284007204,0.02896001,114510.0,114500.0,3.64530252]
[1759284007408,0.02896001,114510.0,114500.0,4.71242252]
[1759284007839,0.02396001,114510.0,114500.0,4.70442252]
[1759284008270,0.02396001,114510.0,114500.0,4.71242252]
[1759284008680,0.02396001,114510.0,114500.0,4.70442252]
[1759284008903,0.02085001,114510.0,114500.0,4.70442252]
[1759284009203,0.02885001,114510.0,114500.0,4.70442252]
[1759284009402,0.03196001,114510.0,114500.0,4.70642252]
[1759284009831,0.01889001,114510.0,114500.0,4.70635252]
[1759284010264,0.02389001,114510.0,114500.0,4.70635252]
[1759284010465,0.01889001,114510.0,114500.0,4.70635252]
[1759284010828,0.02689001,114510.0,114500.0,4.70635252]
[1759284011293,0.02689001,114510.0,114500.0,4.71435252]
[1759284012762,0.02689001,114510.0,114500.0,4.71635252]
[1759284014050,0.02885001,114510.0,114500.0,4.71635252]
[1759284014240,0.02689001,114510.0,114500.0,4.71635252]
[1759284014861,0.02885001,114510.0,114500.0,4.71635252]
[1759284015224,0.02689001,114510.0,114500.0,4.71635252]
[1759284015433,0.03196001,114510.0,114500.0,4.71635252]
[1759284015643,0.03196001,114510.0,114500.0,4.71442252]
[1759284015842,0.03196001,114510.0,114500.0,4.71446252]
[1759284016343,0.03196001,114510.0,114500.0,4.77708944]
[1759284016597,0.02885001,114510.0,114500.0,4.77901944]
[1759284017059,0.03196001,114510.0,114500.0,4.77708944]
[1759284017625,0.03196001,114510.0,114500.0,4.77901944]
[1759284017852,0.02885001,114510.0,114500.0,4.77901944]
[1759284018857,0.02885001,114510.0,114500.0,3.71185944]
[1759284019506,0.02885001,114510.0,114500.0,4.77901944]
[1759284020454,0.02885001,114510.0,114500.0,3.71185944]
[1759284020675,0.03195001,114510.0,114500.0,4.51792448]
[1759284020820,0.02885001,114510.0,114500.0,3.45076448]
[1759284021031,0.02885001,114510.0,114500.0,4.51792448]
[1759284021269,0.03195001,114510.0,114500.0,4.51792448]
[1759284021616,0.03195001,114510.0,114500.0,4.06408448]
[1759284021835,0.03195001,114510.0,114500.0,3.45076448]
[1759284022044,0.03195001,114510.0,114500.0,4.51792448]
[1759284022262,0.03195001,114510.0,114500.0,3.45076448]
[1759284022415,0.03195001,114510.0,114500.0,4.51792448]
[1759284022762,0.03195001,114510.0,114500.0,3.45076448]
[1759284022920,0.03195001,114510.0,114500.0,4.51792448]
[1759284023188,0.03195001,114510.0,114500.0,4.58351837]
[1759284023583,0.02885001,114510.0,114500.0,4.58351837]
[1759284023790,0.03195001,114510.0,114500.0,4.58158837]
[1759284023969,0.03195001,114510.0,114500.0,4.58351837]
[1759284025607,0.02885001,114510.0,114500.0,4.58351837]
[1759284027262,0.02689001,114510.0,114500.0,4.58351837]
[1759284027481,0.02894001,114510.0,114500.0,4.58351837]
[1759284028648,0.05514622,114510.0,114500.0,4.58351837]
[1759284030573,0.05514622,114510.0,114500.0,4.64614529]
[1759284031969,0.05309622,114510.0,114500.0,4.64614529]
[1759284035387,0.05514622,114510.0,114500.0,4.64614529]
[1759284035601,0.05309622,114510.0,114500.0,4.64614529]
[1759284036513,0.05514622,114510.0,114500.0,4.64614529]
[1759284036942,0.05514622,114510.0,114500.0,3.87943837]
[1759284037156,0.05824622,114510.0,114500.0,4.64415254]
[1759284037348,0.05824622,114510.0,114500.0,3.57707254]
[1759284037490,0.05824622,114510.0,114500.0,4.64415254]
[1759284038841,0.05824622,114510.0,114500.0,4.63415254]
[1759284038842,0.05024622,114510.0,114500.0,4.63415254]
[1759284039170,0.04994622,114510.0,114500.0,3.56907254]
[1759284039377,0.04994622,114510.0,114500.0,4.63611254]
[1759284039583,0.04994622,114510.0,114500.0,4.63411254]
[1759284039994,0.06294622,114510.0,114500.0,4.63411254]
[1759284040864,0.05779622,114510.0,114500.0,4.63604254]
[1759284041148,0.06284622,114510.0,114500.0,4.63604254]
[1759284041540,0.06594622,114510.0,114500.0,4.63411254]
[1759284042241,0.04994622,114510.0,114500.0,4.63411254]
[1759284042540,0.05994622,114510.0,114500.0,4.63411254]
[1759284042839,0.05994622,114510.0,114500.0,3.56907254]
[1759284043062,0.05994622,114510.0,114500.0,4.63611254]
[1759284043586,0.05994622,114510.0,114500.0,3.56907254]
[1759284043825,0.23460345,114510.0,114500.0,3.16642837]
[1759284044031,0.32398892,114510.0,114500.0,3.77962837]
[1759284044245,0.14933169,114510.0,114500.0,4.23346837]
[1759284044885,0.13933169,114510.0,114500.0,4.57146837]
[1759284045118,0.13933169,114510.0,114500.0,3.50442837]
[1759284045338,0.14933169,114510.0,114500.0,3.50442837]
[1759284045539,0.13933169,114510.0,114500.0,4.57146837]
[1759284045755,0.15533169,114510.0,114500.0,4.57146837]
[1759284045965,0.15533169,114510.0,114500.0,4.58146837]
[1759284047572,0.13933169,114510.0,114500.0,4.57146837]
[1759284048055,0.14033169,114510.0,114500.0,4.57146837]
[1759284050493,0.14033169,114510.0,114500.0,3.50442837]
[1759284050696,0.14033169,114510.0,114500.0,4.57154837]
[1759284050917,0.14033169,114510.0,114500.0,4.50595448]
[1759284051880,0.14033169,114510.0,114500.0,3.43883448]
[1759284052003,0.14033169,114510.0,114500.0,4.50595448]
[1759284052434,0.31498892,114510.0,114500.0,4.50595448]
[1759284053095,0.31498892,114510.0,114500.0,4.331282]
[1759284053296,0.31498892,114510.0,114500.0,1.47968]
[1759284053497,0.14033169,114510.0,114500.0,1.74511248]
[1759284056631,0.13723169,114510.0,114500.0,4.50784448]
[1759284056855,0.04579622,114510.0,114500.0,4.50784448]
[1759284057105,0.04579622,114510.0,114500.0,4.50905448]
[1759284057319,0.01959001,114510.0,114500.0,4.50905448]
[1759284057567,0.01959001,114510.0,114500.0,4.50591448]
[1759284057828,0.02464001,114510.0,114500.0,4.50591448]
[1759284058041,0.02464001,114510.0,114500.0,4.50784448]
[1759284058268,0.02171001,114510.0,114500.0,4.50784448]
[1759284059390,0.02171001,114510.0,114500.0,4.57265881]
[1759284060233,0.01959001,114510.0,114500.0,4.57265881]
[1759284060777,0.01959001,114510.0,114500.0,4.57082103]
[1759284061002,0.01959001,114510.0,114500.0,4.57203103]
[1759284065226,0.01959001,114510.0,114500.0,4.57199103]
[1759284065922,0.01959001,114510.0,114500.0,3.50495103]
[1759284066134,0.01959001,114510.0,114500.0,4.57199103]
[1759284069612,0.01959001,114510.0,114500.0,3.50495103]
[1759284069956,0.01959001,114510.0,114500.0,4.57199103]
[1759284070674,0.01959001,114510.0,114500.0,3.50374103]
[1759284070890,0.01959001,114510.0,114500.0,3.50495103]
[1759284071059,0.01959001,114510.0,114500.0,4.57195103]
[1759284072107,1e-08,114510.0,114500.0,4.59073257]
[1759284072335,1e-08,114510.0,114500.0,3.52373257]
[1759284072557,1e-08,114510.0,114500.0,3.73729065]
[1759284072982,0.0002,114530.0,114510.0,0.42152243]
[1759284073199,0.00066515,114530.0,114520.0,3.18544398]
[1759284073387,0.00066515,114530.0,114520.0,3.18737398]
[1759284074568,0.00666515,114530.0,114520.0,2.93737398]
[1759284074777,0.02959515,114530.0,114520.0,3.18737398]
[1759284075192,0.03171515,114530.0,114520.0,3.18737398]
[1759284076061,0.02959515,114530.0,114520.0,3.18737398]
[1759284076274,0.02359515,114530.0,114520.0,3.18737398]
[1759284076695,0.02359515,114530.0,114520.0,3.19937398]
[1759284077112,0.02359515,114530.0,114520.0,3.72581398]
[1759284077312,0.02359515,114530.0,114520.0,4.17965398]
[1759284078830,0.02359515,114530.0,114520.0,4.18086398]
[1759284083020,0.02359515,114530.0,114520.0,4.17961398]
[1759284083982,0.02570515,114530.0,114520.0,3.11273398]
[1759284084212,0.02887515,114530.0,114520.0,4.17760398]
[1759284084844,0.02887515,114530.0,114520.0,4.08684398]
[1759284085061,0.02887515,114530.0,114520.0,4.17760398]
[1759284085307,0.02887515,114530.0,114520.0,3.11273398]
[1759284085519,0.02887515,114530.0,114520.0,4.17949398]
[1759284085520,0.02570515,114530.0,114520.0,4.17949398]
[1759284085757,0.02359515,114530.0,114520.0,4.17949398]
[1759284085964,0.02887515,114530.0,114520.0,3.47384398]
[1759284086179,0.02887515,114530.0,114520.0,4.08680398]
[1759284086376,0.02887515,114530.0,114520.0,4.17756398]
[1759284088866,0.02887515,114530.0,114520.0,3.92764398]
[1759284089100,0.11826062,114530.0,114520.0,4.17756398]
[1759284089361,0.14446649,114530.0,114520.0,4.17756398]
[1759284089576,0.31909322,114530.0,114520.0,3.741002]
[1759284089795,0.32809322,114530.0,114520.0,3.990922]
[1759284090010,0.32809322,114530.0,114520.0,1.23012]
[1759284090227,0.32809322,114530.0,114520.0,1.40476198]
[1759284090451,0.31909322,114530.0,114520.0,1.23012]
[1759284090721,0.31909322,114530.0,114520.0,0.16336]
[1759284090943,0.33009322,114530.0,114520.0,1.24112]
[1759284091153,0.33009322,114530.0,114520.0,1.23012]
[1759284091384,0.31909322,114530.0,114520.0,1.23012]
[1759284091650,0.32509322,114530.0,114520.0,1.23012]
[1759284092586,0.33909322,114530.0,114520.0,1.23012]
[1759284095478,0.17464198,114520.0,114510.0,0.51465621]
[1759284095668,0.26613745,114520.0,114510.0,3.191562]
[1759284095914,0.29370745,114520.0,114510.0,3.27545923]
[1759284096113,0.29370745,114520.0,114510.0,3.36621923]
[1759284096344,0.3199181,114520.0,114510.0,3.36621923]
[1759284096528,0.3309181,114520.0,114510.0,3.61613923]
[1759284096891,0.3309181,114520.0,114510.0,3.441482]
[1759284097156,0.3309181,114520.0,114510.0,4.167642]
[1759284097357,0.3309181,114520.0,114510.0,4.34229923]
[1759284097557,0.3309181,114520.0,114510.0,4.167642]
[1759284097761,0.3309181,114520.0,114510.0,3.577722]
[1759284097944,0.17465723,114510.0,114500.0,0.02062]
[1759284098316,0.2672127,114510.0,114500.0,4.00231448]
[1759284098524,0.11906547,114510.0,114500.0,4.00231448]
[1759284098716,0.14527821,114510.0,114500.0,4.00231448]
[1759284099364,0.15623455,114510.0,114500.0,4.00231448]
[1759284099586,0.14523455,114510.0,114500.0,4.00231448]
[1759284100010,0.15923455,114510.0,114500.0,4.00231448]
[1759284100628,0.33389178,114510.0,114500.0,4.00231448]
[1759284100844,0.15923455,114510.0,114500.0,4.00231448]
[1759284101053,0.16523455,114510.0,114500.0,4.00231448]
[1759284103234,0.14523455,114510.0,114500.0,4.00231448]
[1759284103599,0.15623455,114510.0,114500.0,4.00231448]
[1759284112317,0.15095455,114510.0,114500.0,4.00424448]
[1759284112531,0.12474181,114510.0,114500.0,4.34545448]
[1759284113695,0.12474181,114510.0,114500.0,4.41135162]
[1759284113881,0.12474181,114510.0,114500.0,4.41256162]
[1759284113882,0.0244,114510.0,114500.0,4.41256162]
[1759284114082,0.0304,114510.0,114500.0,4.41256162]
[1759284114934,0.0244,114510.0,114500.0,4.41135162]
[1759284115138,0.0244,114510.0,114500.0,4.42235162]
[1759284115763,0.02648,114510.0,114500.0,4.42235162]
[1759284115969,0.0244,114510.0,114500.0,4.42235162]
[1759284117774,0.0244,114510.0,114500.0,4.35524448]
[1759284118278,0.0244,114510.0,114500.0,4.41960025]
[1759284118891,0.0244,114510.0,114500.0,4.42081025]
[1759284120108,0.0244,114510.0,114500.0,3.35397025]
[1759284120334,0.0244,114510.0,114500.0,4.42093025]
[1759284120558,0.0244,114510.0,114500.0,3.35397025]
[1759284120765,0.0244,114510.0,114500.0,4.42093025]
[1759284122811,0.0244,114510.0,114500.0,3.35397025]
[1759284123005,0.0244,114510.0,114500.0,4.42081025]
[1759284124424,0.0244,114510.0,114500.0,3.35276025]
[1759284124671,0.0244,114510.0,114500.0,4.42081025]
[1759284125148,0.0244,114510.0,114500.0,3.35276025]
[1759284125360,0.02963,114510.0,114500.0,3.71395025]
[1759284125581,0.02963,114510.0,114500.0,4.41767025]
[1759284126058,0.02963,114510.0,114500.0,3.35083025]
[1759284126267,0.02963,114510.0,114500.0,3.96379025]
[1759284126489,0.02963,114510.0,114500.0,4.41767025]
[1759284127063,0.02963,114510.0,114500.0,3.96379025]
[1759284127310,0.02963,114510.0,114500.0,4.41767025]
[1759284128895,0.0244,114510.0,114500.0,4.41960025]
[1759284131578,0.0244,114510.0,114500.0,4.42081025]
[1759284132009,0.0244,114510.0,114500.0,4.23300225]
[1759284132212,0.0244,114510.0,114500.0,4.23179225]